[Event "Titled Tuesday Blitz August 16 Early 2022"]
[White "Lehtosaari, Mauri"]
[Black "Santeramo, Alessia Carmen"]
[WhiteFideId "501999"]
[BlackFideId "850810"]
[WhiteElo "2200"]
[BlackElo "2041"]
[Result "1-0"]
[Round "07"]
[TimeControl "180+2"]
[Date "2022.08.18"]
[WhiteClock "0:00:00"]
[BlackClock "0:00:00"]

1. Nf3 {[%clk 0:00:00]}  Nf6 {[%clk 0:00:00]} 2. c4 {[%clk 0:00:00]}  e6 {[%clk 0:00:00]} 3. Nc3 {[%clk 0:00:00]}  d5 {[%clk 0:00:00]} 4. cxd5 {[%clk 0:00:00]}  exd5 {[%clk 0:00:00]} 5. d4 {[%clk 0:00:00]}  c6 {[%clk 0:00:00]} 6. Bg5 {[%clk 0:00:00]}  Bf5 {[%clk 0:00:00]} 7. e3 {[%clk 0:00:00]}  Nbd7 {[%clk 0:00:00]} 8. Be2 {[%clk 0:00:00]}  Be7 {[%clk 0:00:00]} 9. O-O {[%clk 0:00:00]}  O-O {[%clk 0:00:00]} 10. Nh4 {[%clk 0:00:00]}  Bg6 {[%clk 0:00:00]} 11. Nxg6 {[%clk 0:00:00]}  hxg6 {[%clk 0:00:00]} 12. Rb1 {[%clk 0:00:00]}  Re8 {[%clk 0:00:00]} 13. b4 {[%clk 0:00:00]}  a6 {[%clk 0:00:00]} 14. a4 {[%clk 0:00:00]}  Nf8 {[%clk 0:00:00]} 15. b5 {[%clk 0:00:00]}  axb5 {[%clk 0:00:00]} 16. axb5 {[%clk 0:00:00]}  Ne6 {[%clk 0:00:00]} 17. Bh4 {[%clk 0:00:00]}  c5 {[%clk 0:00:00]} 18. dxc5 {[%clk 0:00:00]}  d4 {[%clk 0:00:00]} 19. exd4 {[%clk 0:00:00]}  Nxd4 {[%clk 0:00:00]} 20. Bf3 {[%clk 0:00:00]}  Ra3 {[%clk 0:00:00]} 21. Bxf6 {[%clk 0:00:00]}  gxf6 {[%clk 0:00:00]} 22. Ne4 {[%clk 0:00:00]}  f5 {[%clk 0:00:00]} 23. Nd6 {[%clk 0:00:00]}  Nxf3+ {[%clk 0:00:00]} 24. gxf3 {[%clk 0:00:00]}  Bxd6 {[%clk 0:00:00]} 25. cxd6 {[%clk 0:00:00]}  Re6 {[%clk 0:00:00]} 26. d7 {[%clk 0:00:00]}  Re7 {[%clk 0:00:00]} 27. Qd6 {[%clk 0:00:00]}  Rxf3 {[%clk 0:00:00]} 28. Rfd1 {[%clk 0:00:00]}  Rc3 {[%clk 0:00:00]} 29. Qxe7 {[%clk 0:00:00]}  Qxe7 {[%clk 0:00:00]} 30. d8=Q+ {[%clk 0:00:00]} 1-0


[Site "https://www.chess.com"]

[Event "Titled Tuesday Blitz August 16 Early 2022"]
[White "Leve, Nitai"]
[Black "Sailer, Mike"]
[WhiteFideId "2006898"]
[BlackFideId "2012901"]
[WhiteElo "2144"]
[BlackElo "2109"]
[Result "1-0"]
[Round "07"]
[TimeControl "180+2"]
[Date "2022.08.18"]
[WhiteClock "0:00:00"]
[BlackClock "0:00:00"]

1. e4 {[%clk 0:00:00]}  d5 {[%clk 0:00:00]} 2. exd5 {[%clk 0:00:00]}  Qxd5 {[%clk 0:00:00]} 3. Nc3 {[%clk 0:00:00]}  Qd6 {[%clk 0:00:00]} 4. h3 {[%clk 0:00:00]}  Nf6 {[%clk 0:00:00]} 5. d4 {[%clk 0:00:00]}  c6 {[%clk 0:00:00]} 6. Nf3 {[%clk 0:00:00]}  Bf5 {[%clk 0:00:00]} 7. Bg5 {[%clk 0:00:00]}  e6 {[%clk 0:00:00]} 8. Bd3 {[%clk 0:00:00]}  Bxd3 {[%clk 0:00:00]} 9. Qxd3 {[%clk 0:00:00]}  Nbd7 {[%clk 0:00:00]} 10. O-O-O {[%clk 0:00:00]}  Be7 {[%clk 0:00:00]} 11. Bh4 {[%clk 0:00:00]}  Nh5 {[%clk 0:00:00]} 12. Bxe7 {[%clk 0:00:00]}  Qxe7 {[%clk 0:00:00]} 13. g4 {[%clk 0:00:00]}  Nf4 {[%clk 0:00:00]} 14. Qe4 {[%clk 0:00:00]}  Nd5 {[%clk 0:00:00]} 15. Nxd5 {[%clk 0:00:00]}  cxd5 {[%clk 0:00:00]} 16. Qf4 {[%clk 0:00:00]}  Nf6 {[%clk 0:00:00]} 17. Ne5 {[%clk 0:00:00]}  Rc8 {[%clk 0:00:00]} 18. f3 {[%clk 0:00:00]}  O-O {[%clk 0:00:00]} 19. h4 {[%clk 0:00:00]}  Nd7 {[%clk 0:00:00]} 20. g5 {[%clk 0:00:00]}  Nxe5 {[%clk 0:00:00]} 21. Qxe5 {[%clk 0:00:00]}  Qc7 {[%clk 0:00:00]} 22. Qxc7 {[%clk 0:00:00]}  Rxc7 {[%clk 0:00:00]} 23. Rhf1 {[%clk 0:00:00]}  Rfc8 {[%clk 0:00:00]} 24. Rd2 {[%clk 0:00:00]}  b5 {[%clk 0:00:00]} 25. f4 {[%clk 0:00:00]}  g6 {[%clk 0:00:00]} 26. h5 {[%clk 0:00:00]}  Kf8 {[%clk 0:00:00]} 27. Kb1 {[%clk 0:00:00]}  Ke7 {[%clk 0:00:00]} 28. c3 {[%clk 0:00:00]}  a5 {[%clk 0:00:00]} 29. a3 {[%clk 0:00:00]}  Rc4 {[%clk 0:00:00]} 30. Re2 {[%clk 0:00:00]}  b4 {[%clk 0:00:00]} 31. axb4 {[%clk 0:00:00]}  axb4 {[%clk 0:00:00]} 32. cxb4 {[%clk 0:00:00]}  Rxd4 {[%clk 0:00:00]} 33. f5 {[%clk 0:00:00]}  gxf5 {[%clk 0:00:00]} 34. Rxf5 {[%clk 0:00:00]}  Rxb4 {[%clk 0:00:00]} 35. Rxd5 {[%clk 0:00:00]}  Rcb8 {[%clk 0:00:00]} 36. Rc5 {[%clk 0:00:00]}  R4b5 {[%clk 0:00:00]} 37. Rc7+ {[%clk 0:00:00]}  Kf8 {[%clk 0:00:00]} 38. g6 {[%clk 0:00:00]}  hxg6 {[%clk 0:00:00]} 39. hxg6 {[%clk 0:00:00]}  fxg6 {[%clk 0:00:00]} 40. Kc1 {[%clk 0:00:00]}  e5 {[%clk 0:00:00]} 41. Rh2 {[%clk 0:00:00]}  Kg8 {[%clk 0:00:00]} 42. Rg2 {[%clk 0:00:00]}  R8b6 {[%clk 0:00:00]} 43. Rd2 {[%clk 0:00:00]} 1-0


[Site "https://www.chess.com"]

[Event "Titled Tuesday Blitz August 16 Early 2022"]
[White "Malyi, Viacheslav"]
[Black "Kosteniuk, Alexandra"]
[WhiteFideId "14123983"]
[BlackFideId "4128125"]
[WhiteElo "2391"]
[BlackElo "2521"]
[Result "1-0"]
[Round "07"]
[TimeControl "180+2"]
[Date "2022.08.18"]
[WhiteClock "0:00:00"]
[BlackClock "0:00:00"]

1. e4 {[%clk 0:00:00]}  c6 {[%clk 0:00:00]} 2. d4 {[%clk 0:00:00]}  d5 {[%clk 0:00:00]} 3. Nc3 {[%clk 0:00:00]}  dxe4 {[%clk 0:00:00]} 4. Nxe4 {[%clk 0:00:00]}  Nf6 {[%clk 0:00:00]} 5. Nxf6+ {[%clk 0:00:00]}  exf6 {[%clk 0:00:00]} 6. Nf3 {[%clk 0:00:00]}  Bd6 {[%clk 0:00:00]} 7. Bd3 {[%clk 0:00:00]}  O-O {[%clk 0:00:00]} 8. O-O {[%clk 0:00:00]}  Bg4 {[%clk 0:00:00]} 9. h3 {[%clk 0:00:00]}  Be6 {[%clk 0:00:00]} 10. c3 {[%clk 0:00:00]}  Re8 {[%clk 0:00:00]} 11. Nh4 {[%clk 0:00:00]}  Nd7 {[%clk 0:00:00]} 12. Nf5 {[%clk 0:00:00]}  Bxf5 {[%clk 0:00:00]} 13. Bxf5 {[%clk 0:00:00]}  Nf8 {[%clk 0:00:00]} 14. Qf3 {[%clk 0:00:00]}  Qc7 {[%clk 0:00:00]} 15. Bd2 {[%clk 0:00:00]}  Ng6 {[%clk 0:00:00]} 16. g3 {[%clk 0:00:00]}  a5 {[%clk 0:00:00]} 17. Rfe1 {[%clk 0:00:00]}  a4 {[%clk 0:00:00]} 18. Rxe8+ {[%clk 0:00:00]}  Rxe8 {[%clk 0:00:00]} 19. Re1 {[%clk 0:00:00]}  Rxe1+ {[%clk 0:00:00]} 20. Bxe1 {[%clk 0:00:00]}  Qb6 {[%clk 0:00:00]} 21. Qe2 {[%clk 0:00:00]}  Ne7 {[%clk 0:00:00]} 22. Be4 {[%clk 0:00:00]}  f5 {[%clk 0:00:00]} 23. Bf3 {[%clk 0:00:00]}  Qd8 {[%clk 0:00:00]} 24. Kg2 {[%clk 0:00:00]}  Qd7 {[%clk 0:00:00]} 25. c4 {[%clk 0:00:00]}  Ng6 {[%clk 0:00:00]} 26. Bc3 {[%clk 0:00:00]}  f4 {[%clk 0:00:00]} 27. c5 {[%clk 0:00:00]}  Be7 {[%clk 0:00:00]} 28. Qe4 {[%clk 0:00:00]}  fxg3 {[%clk 0:00:00]} 29. fxg3 {[%clk 0:00:00]}  Bf6 {[%clk 0:00:00]} 30. d5 {[%clk 0:00:00]}  Bxc3 {[%clk 0:00:00]} 31. bxc3 {[%clk 0:00:00]}  Ne7 {[%clk 0:00:00]} 32. d6 {[%clk 0:00:00]}  Nf5 {[%clk 0:00:00]} 33. Bg4 {[%clk 0:00:00]}  g6 {[%clk 0:00:00]} 34. Bxf5 {[%clk 0:00:00]}  gxf5 {[%clk 0:00:00]} 35. Qe7 {[%clk 0:00:00]} 1-0


[Site "https://www.chess.com"]

[Event "Titled Tuesday Blitz August 16 Early 2022"]
[White "Martinez Alcantara, Jose Eduardo"]
[Black "Drygalov, Sergey"]
[WhiteFideId "3805662"]
[BlackFideId "24171743"]
[WhiteElo "2703"]
[BlackElo "2523"]
[Result "1-0"]
[Round "07"]
[TimeControl "180+1"]
[Date "2022.08.16"]
[WhiteClock "0:00:04"]
[BlackClock "0:00:02"]

1. e4 {[%clk 0:03:00]}  c5 {[%clk 0:03:00]} 2. Nf3 {[%clk 0:02:59]}  d6 {[%clk 0:03:00]} 3. c3 {[%clk 0:03:00]}  Nf6 {[%clk 0:03:00]} 4. h3 {[%clk 0:03:00]}  g6 {[%clk 0:02:59]} 5. Bd3 {[%clk 0:03:00]}  Bg7 {[%clk 0:02:59]} 6. Bc2 {[%clk 0:03:01]}  O-O {[%clk 0:02:59]} 7. d4 {[%clk 0:03:02]}  Nbd7 {[%clk 0:02:37]} 8. O-O {[%clk 0:02:49]}  Qc7 {[%clk 0:02:33]} 9. Be3 {[%clk 0:02:40]}  b6 {[%clk 0:02:30]} 10. Nbd2 {[%clk 0:02:40]}  Ba6 {[%clk 0:02:26]} 11. Re1 {[%clk 0:02:40]}  Rac8 {[%clk 0:02:25]} 12. Rc1 {[%clk 0:02:36]}  e5 {[%clk 0:02:21]} 13. d5 {[%clk 0:02:33]}  c4 {[%clk 0:02:01]} 14. Nf1 {[%clk 0:02:29]}  Nh5 {[%clk 0:01:56]} 15. Bb1 {[%clk 0:01:58]}  Nc5 {[%clk 0:01:53]} 16. Qd2 {[%clk 0:00:53]}  Rce8 {[%clk 0:01:51]} 17. g4 {[%clk 0:00:50]}  Nf6 {[%clk 0:01:34]} 18. Ng3 {[%clk 0:00:49]}  Nfd7 {[%clk 0:01:23]} 19. Kh2 {[%clk 0:00:48]}  Rc8 {[%clk 0:01:08]} 20. Rg1 {[%clk 0:00:48]}  Qd8 {[%clk 0:01:02]} 21. Bc2 {[%clk 0:00:42]}  Bf6 {[%clk 0:00:51]} 22. Rcf1 {[%clk 0:00:29]}  Nd3 {[%clk 0:00:51]} 23. Bxd3 {[%clk 0:00:25]}  cxd3 {[%clk 0:00:51]} 24. b3 {[%clk 0:00:26]}  Nc5 {[%clk 0:00:45]} 25. Rc1 {[%clk 0:00:23]}  Qe7 {[%clk 0:00:38]} 26. c4 {[%clk 0:00:20]}  b5 {[%clk 0:00:35]} 27. Bxc5 {[%clk 0:00:19]}  Rxc5 {[%clk 0:00:35]} 28. cxb5 {[%clk 0:00:10]}  Bxb5 {[%clk 0:00:35]} 29. a4 {[%clk 0:00:08]}  Ba6 {[%clk 0:00:33]} 30. b4 {[%clk 0:00:08]}  Rcc8 {[%clk 0:00:07]} 31. b5 {[%clk 0:00:08]}  Bb7 {[%clk 0:00:08]} 32. Qxd3 {[%clk 0:00:09]}  Ra8 {[%clk 0:00:05]} 33. Qe3 {[%clk 0:00:08]}  a6 {[%clk 0:00:06]} 34. b6 {[%clk 0:00:08]}  Rfc8 {[%clk 0:00:06]} 35. a5 {[%clk 0:00:08]}  Qd7 {[%clk 0:00:04]} 36. g5 {[%clk 0:00:04]}  Be7 {[%clk 0:00:03]} 37. Qb3 {[%clk 0:00:04]}  Kg7 {[%clk 0:00:02]} 38. Qb2 {[%clk 0:00:04]}  f6 {[%clk 0:00:03]} 39. Rg2 {[%clk 0:00:02]}  Rxc1 {[%clk 0:00:02]} 40. Qxc1 {[%clk 0:00:02]}  Rc8 {[%clk 0:00:03]} 41. Qe3 {[%clk 0:00:02]}  Qb5 {[%clk 0:00:03]} 42. gxf6+ {[%clk 0:00:03]}  Bxf6 {[%clk 0:00:04]} 43. Nh5+ {[%clk 0:00:04]}  Kf7 {[%clk 0:00:04]} 44. Nxf6 {[%clk 0:00:04]}  Kxf6 {[%clk 0:00:04]} 45. Qg5+ {[%clk 0:00:03]}  Kf7 {[%clk 0:00:05]} 46. Qh4 {[%clk 0:00:04]}  Rh8 {[%clk 0:00:04]} 47. Ng5+ {[%clk 0:00:05]}  Ke8 {[%clk 0:00:02]} 48. Ne6 {[%clk 0:00:05]}  Qd7 {[%clk 0:00:02]} 49. Qf6 {[%clk 0:00:04]}  Rg8 {[%clk 0:00:02]} 50. Nc7+ {[%clk 0:00:04]} 1-0


[Site "https://www.chess.com"]

[Event "Titled Tuesday Blitz August 16 Early 2022"]
[White "Matveeva, Olga"]
[Black "O`Gorman, Tom"]
[WhiteFideId "24107018"]
[BlackFideId "2508249"]
[WhiteElo "2168"]
[BlackElo "2389"]
[Result "0-1"]
[Round "07"]
[TimeControl "180+2"]
[Date "2022.08.18"]
[WhiteClock "0:00:00"]
[BlackClock "0:00:00"]

1. d4 {[%clk 0:00:00]}  d5 {[%clk 0:00:00]} 2. c4 {[%clk 0:00:00]}  c6 {[%clk 0:00:00]} 3. Nf3 {[%clk 0:00:00]}  Nf6 {[%clk 0:00:00]} 4. Qb3 {[%clk 0:00:00]}  Nbd7 {[%clk 0:00:00]} 5. g3 {[%clk 0:00:00]}  e6 {[%clk 0:00:00]} 6. Bg2 {[%clk 0:00:00]}  Bd6 {[%clk 0:00:00]} 7. O-O {[%clk 0:00:00]}  O-O {[%clk 0:00:00]} 8. Nc3 {[%clk 0:00:00]}  b6 {[%clk 0:00:00]} 9. Re1 {[%clk 0:00:00]}  Ba6 {[%clk 0:00:00]} 10. cxd5 {[%clk 0:00:00]}  cxd5 {[%clk 0:00:00]} 11. e4 {[%clk 0:00:00]}  dxe4 {[%clk 0:00:00]} 12. Nxe4 {[%clk 0:00:00]}  Nxe4 {[%clk 0:00:00]} 13. Rxe4 {[%clk 0:00:00]}  Bb7 {[%clk 0:00:00]} 14. Rh4 {[%clk 0:00:00]}  Be7 {[%clk 0:00:00]} 15. Rg4 {[%clk 0:00:00]}  Nf6 {[%clk 0:00:00]} 16. Rf4 {[%clk 0:00:00]}  Rc8 {[%clk 0:00:00]} 17. Be3 {[%clk 0:00:00]}  Nd5 {[%clk 0:00:00]} 18. Rg4 {[%clk 0:00:00]}  f5 {[%clk 0:00:00]} 19. Rh4 {[%clk 0:00:00]}  Bxh4 {[%clk 0:00:00]} 20. Nxh4 {[%clk 0:00:00]}  f4 {[%clk 0:00:00]} 21. Bxf4 {[%clk 0:00:00]}  Rxf4 {[%clk 0:00:00]} 22. gxf4 {[%clk 0:00:00]}  Qxh4 {[%clk 0:00:00]} 23. f5 {[%clk 0:00:00]}  Qg5 {[%clk 0:00:00]} 24. fxe6 {[%clk 0:00:00]}  Nf4 {[%clk 0:00:00]} 25. e7+ {[%clk 0:00:00]}  Bd5 {[%clk 0:00:00]} 26. Qg3 {[%clk 0:00:00]}  Ne2+ {[%clk 0:00:00]} 0-1


[Site "https://www.chess.com"]

[Event "Titled Tuesday Blitz August 16 Early 2022"]
[White "Melikhov, Evgeny V."]
[Black "Maiorov, Nikita"]
[WhiteFideId "4122046"]
[BlackFideId "13501720"]
[WhiteElo "1963"]
[BlackElo "2409"]
[Result "1/2-1/2"]
[Round "07"]
[TimeControl "180+2"]
[Date "2022.08.18"]
[WhiteClock "0:00:00"]
[BlackClock "0:00:00"]

1. d4 {[%clk 0:00:00]}  Nf6 {[%clk 0:00:00]} 2. c4 {[%clk 0:00:00]}  e6 {[%clk 0:00:00]} 3. Nc3 {[%clk 0:00:00]}  d5 {[%clk 0:00:00]} 4. cxd5 {[%clk 0:00:00]}  exd5 {[%clk 0:00:00]} 5. Bg5 {[%clk 0:00:00]}  c6 {[%clk 0:00:00]} 6. Qc2 {[%clk 0:00:00]}  Be7 {[%clk 0:00:00]} 7. e3 {[%clk 0:00:00]}  Nbd7 {[%clk 0:00:00]} 8. Bd3 {[%clk 0:00:00]}  h6 {[%clk 0:00:00]} 9. Bh4 {[%clk 0:00:00]}  Nh5 {[%clk 0:00:00]} 10. Bxe7 {[%clk 0:00:00]}  Qxe7 {[%clk 0:00:00]} 11. Nge2 {[%clk 0:00:00]}  O-O {[%clk 0:00:00]} 12. O-O-O {[%clk 0:00:00]}  Nhf6 {[%clk 0:00:00]} 13. Rhg1 {[%clk 0:00:00]}  b5 {[%clk 0:00:00]} 14. g4 {[%clk 0:00:00]}  b4 {[%clk 0:00:00]} 15. Na4 {[%clk 0:00:00]}  Ne4 {[%clk 0:00:00]} 16. Bxe4 {[%clk 0:00:00]}  dxe4 {[%clk 0:00:00]} 17. Nc5 {[%clk 0:00:00]}  Re8 {[%clk 0:00:00]} 18. h3 {[%clk 0:00:00]}  a6 {[%clk 0:00:00]} 19. Kb1 {[%clk 0:00:00]}  a5 {[%clk 0:00:00]} 20. Rc1 {[%clk 0:00:00]}  Ba6 {[%clk 0:00:00]} 21. Nxa6 {[%clk 0:00:00]}  Rxa6 {[%clk 0:00:00]} 22. Ng3 {[%clk 0:00:00]}  a4 {[%clk 0:00:00]} 23. Qc4 {[%clk 0:00:00]}  Rb6 {[%clk 0:00:00]} 24. Nf5 {[%clk 0:00:00]}  Qf6 {[%clk 0:00:00]} 25. Rc2 {[%clk 0:00:00]}  b3 {[%clk 0:00:00]} 26. axb3 {[%clk 0:00:00]}  axb3 {[%clk 0:00:00]} 27. Rc3 {[%clk 0:00:00]}  Reb8 {[%clk 0:00:00]} 28. Qa4 {[%clk 0:00:00]}  g6 {[%clk 0:00:00]} 29. Nxh6+ {[%clk 0:00:00]}  Kg7 {[%clk 0:00:00]} 30. d5 {[%clk 0:00:00]}  Ne5 {[%clk 0:00:00]} 31. dxc6 {[%clk 0:00:00]}  Rxc6 {[%clk 0:00:00]} 32. Rxc6 {[%clk 0:00:00]}  Nxc6 {[%clk 0:00:00]} 33. Qxe4 {[%clk 0:00:00]}  Nb4 {[%clk 0:00:00]} 34. g5 {[%clk 0:00:00]}  Qd6 {[%clk 0:00:00]} 35. Qd4+ {[%clk 0:00:00]}  Qxd4 {[%clk 0:00:00]} 36. exd4 {[%clk 0:00:00]}  Re8 {[%clk 0:00:00]} 37. Ng4 {[%clk 0:00:00]}  Re2 {[%clk 0:00:00]} 38. Ne5 {[%clk 0:00:00]}  Rxf2 {[%clk 0:00:00]} 39. Rd1 {[%clk 0:00:00]}  Nd5 {[%clk 0:00:00]} 40. Kc1 {[%clk 0:00:00]}  Rc2+ {[%clk 0:00:00]} 41. Kb1 {[%clk 0:00:00]}  Rf2 {[%clk 0:00:00]} 42. Kc1 {[%clk 0:00:00]}  Rc2+ {[%clk 0:00:00]} 43. Kb1 {[%clk 0:00:00]}  Rf2 {[%clk 0:00:00]} 1/2-1/2


[Site "https://www.chess.com"]

[Event "Titled Tuesday Blitz August 16 Early 2022"]
[White "Mikhalsky, Vladimir"]
[Black "Martin, Lewis"]
[WhiteFideId "14144352"]
[BlackFideId "410551"]
[WhiteElo "2301"]
[BlackElo "2145"]
[Result "1-0"]
[Round "07"]
[TimeControl "180+2"]
[Date "2022.08.18"]
[WhiteClock "0:00:00"]
[BlackClock "0:00:00"]

1. d4 {[%clk 0:00:00]}  d5 {[%clk 0:00:00]} 2. c4 {[%clk 0:00:00]}  c6 {[%clk 0:00:00]} 3. Nf3 {[%clk 0:00:00]}  Nf6 {[%clk 0:00:00]} 4. Nc3 {[%clk 0:00:00]}  dxc4 {[%clk 0:00:00]} 5. a4 {[%clk 0:00:00]}  Bf5 {[%clk 0:00:00]} 6. Ne5 {[%clk 0:00:00]}  e6 {[%clk 0:00:00]} 7. f3 {[%clk 0:00:00]}  Bb4 {[%clk 0:00:00]} 8. e4 {[%clk 0:00:00]}  Bxe4 {[%clk 0:00:00]} 9. fxe4 {[%clk 0:00:00]}  Nxe4 {[%clk 0:00:00]} 10. Bd2 {[%clk 0:00:00]}  Qxd4 {[%clk 0:00:00]} 11. Nxe4 {[%clk 0:00:00]}  Qxe4+ {[%clk 0:00:00]} 12. Qe2 {[%clk 0:00:00]}  Bxd2+ {[%clk 0:00:00]} 13. Kxd2 {[%clk 0:00:00]}  Qd5+ {[%clk 0:00:00]} 14. Kc3 {[%clk 0:00:00]}  Na6 {[%clk 0:00:00]} 15. Nxc4 {[%clk 0:00:00]}  O-O {[%clk 0:00:00]} 16. Qe5 {[%clk 0:00:00]}  Rac8 {[%clk 0:00:00]} 17. Bd3 {[%clk 0:00:00]}  f6 {[%clk 0:00:00]} 18. Qe4 {[%clk 0:00:00]}  g6 {[%clk 0:00:00]} 19. Rhe1 {[%clk 0:00:00]}  Nc5 {[%clk 0:00:00]} 20. Qe3 {[%clk 0:00:00]}  Rfd8 {[%clk 0:00:00]} 21. Be4 {[%clk 0:00:00]}  Qh5 {[%clk 0:00:00]} 22. Bf3 {[%clk 0:00:00]}  Qf5 {[%clk 0:00:00]} 23. Rad1 {[%clk 0:00:00]}  b5 {[%clk 0:00:00]} 24. Nd6 {[%clk 0:00:00]}  Nxa4+ {[%clk 0:00:00]} 25. Kb4 {[%clk 0:00:00]}  c5+ {[%clk 0:00:00]} 26. Ka5 {[%clk 0:00:00]}  Rxd6 {[%clk 0:00:00]} 27. Rxd6 {[%clk 0:00:00]}  Nb6 {[%clk 0:00:00]} 28. Qxe6+ {[%clk 0:00:00]}  Qxe6 {[%clk 0:00:00]} 29. Rdxe6 {[%clk 0:00:00]}  Nc4+ {[%clk 0:00:00]} 30. Ka6 {[%clk 0:00:00]}  Nxb2 {[%clk 0:00:00]} 31. Kxb5 {[%clk 0:00:00]}  Rb8+ {[%clk 0:00:00]} 32. Kc6 {[%clk 0:00:00]}  Nd3 {[%clk 0:00:00]} 33. Re8+ {[%clk 0:00:00]}  Rxe8 {[%clk 0:00:00]} 34. Rxe8+ {[%clk 0:00:00]}  Kf7 {[%clk 0:00:00]} 35. Ra8 {[%clk 0:00:00]}  c4 {[%clk 0:00:00]} 36. Rxa7+ {[%clk 0:00:00]}  Ke6 {[%clk 0:00:00]} 37. Bd5+ {[%clk 0:00:00]}  Ke5 {[%clk 0:00:00]} 38. Bxc4 {[%clk 0:00:00]}  Nf4 {[%clk 0:00:00]} 39. g3 {[%clk 0:00:00]}  Nh3 {[%clk 0:00:00]} 40. Bf1 {[%clk 0:00:00]}  Nf2 {[%clk 0:00:00]} 41. Ra4 {[%clk 0:00:00]}  Ng4 {[%clk 0:00:00]} 42. Rxg4 {[%clk 0:00:00]} 1-0


[Site "https://www.chess.com"]

[Event "Titled Tuesday Blitz August 16 Early 2022"]
[White "Miszler, Levente"]
[Black "Lebedev, Artem S."]
[WhiteFideId "763276"]
[BlackFideId "34272747"]
[WhiteElo "1966"]
[BlackElo "1699"]
[Result "1-0"]
[Round "07"]
[TimeControl "180+2"]
[Date "2022.08.18"]
[WhiteClock "0:00:00"]
[BlackClock "0:00:00"]

1. Nf3 {[%clk 0:00:00]}  d5 {[%clk 0:00:00]} 2. c4 {[%clk 0:00:00]}  e6 {[%clk 0:00:00]} 3. g3 {[%clk 0:00:00]}  Nf6 {[%clk 0:00:00]} 4. Bg2 {[%clk 0:00:00]}  Be7 {[%clk 0:00:00]} 5. O-O {[%clk 0:00:00]}  O-O {[%clk 0:00:00]} 6. Qc2 {[%clk 0:00:00]}  c5 {[%clk 0:00:00]} 7. cxd5 {[%clk 0:00:00]}  Nxd5 {[%clk 0:00:00]} 8. a3 {[%clk 0:00:00]}  Nc6 {[%clk 0:00:00]} 9. Nc3 {[%clk 0:00:00]}  b6 {[%clk 0:00:00]} 10. Rd1 {[%clk 0:00:00]}  Bb7 {[%clk 0:00:00]} 11. d4 {[%clk 0:00:00]}  cxd4 {[%clk 0:00:00]} 12. Nxd4 {[%clk 0:00:00]}  Nxd4 {[%clk 0:00:00]} 13. Rxd4 {[%clk 0:00:00]}  Qc7 {[%clk 0:00:00]} 14. Bf4 {[%clk 0:00:00]}  Nxf4 {[%clk 0:00:00]} 15. Rxf4 {[%clk 0:00:00]}  Bxg2 {[%clk 0:00:00]} 16. Kxg2 {[%clk 0:00:00]}  Bf6 {[%clk 0:00:00]} 17. Rc1 {[%clk 0:00:00]}  Rac8 {[%clk 0:00:00]} 18. Qe4 {[%clk 0:00:00]}  Qc6 {[%clk 0:00:00]} 19. Qxc6 {[%clk 0:00:00]}  Rxc6 {[%clk 0:00:00]} 20. Rf3 {[%clk 0:00:00]}  Rfc8 {[%clk 0:00:00]} 21. Rd1 {[%clk 0:00:00]}  Bxc3 {[%clk 0:00:00]} 22. bxc3 {[%clk 0:00:00]}  g6 {[%clk 0:00:00]} 23. Rd7 {[%clk 0:00:00]}  f5 {[%clk 0:00:00]} 24. Rxa7 {[%clk 0:00:00]}  Rxc3 {[%clk 0:00:00]} 25. Rf4 {[%clk 0:00:00]}  R8c7 {[%clk 0:00:00]} 26. Ra6 {[%clk 0:00:00]}  Rb3 {[%clk 0:00:00]} 27. Rd4 {[%clk 0:00:00]}  Rb7 {[%clk 0:00:00]} 28. e3 {[%clk 0:00:00]}  Kf7 {[%clk 0:00:00]} 29. a4 {[%clk 0:00:00]}  Kf6 {[%clk 0:00:00]} 30. Rd6 {[%clk 0:00:00]}  Ke5 {[%clk 0:00:00]} 31. Rc6 {[%clk 0:00:00]}  Kd5 {[%clk 0:00:00]} 32. Rc8 {[%clk 0:00:00]}  h5 {[%clk 0:00:00]} 33. Rg8 {[%clk 0:00:00]}  Rb2 {[%clk 0:00:00]} 34. Rxg6 {[%clk 0:00:00]}  Rc7 {[%clk 0:00:00]} 35. e4+ {[%clk 0:00:00]}  Kxe4 {[%clk 0:00:00]} 36. Rxe6+ {[%clk 0:00:00]}  Kd5 {[%clk 0:00:00]} 37. Rexb6 {[%clk 0:00:00]}  Ra2 {[%clk 0:00:00]} 38. Rb5+ {[%clk 0:00:00]}  Ke4 {[%clk 0:00:00]} 39. Re6+ {[%clk 0:00:00]}  Kd3 {[%clk 0:00:00]} 40. Re3+ {[%clk 0:00:00]}  Kd4 {[%clk 0:00:00]} 41. Rxf5 {[%clk 0:00:00]}  Rcc2 {[%clk 0:00:00]} 42. Ref3 {[%clk 0:00:00]} 1-0


[Site "https://www.chess.com"]